[Event "Late-Titled-Tuesday-Blitz-August-29-2023"]
[Site "Chess.com"]
[Date "2023.08.29"]
[Round "6"]
[White "gunslinger222"]
[Black "cottage_cheese"]
[Result "1/2-1/2"]
[WhiteElo "2469"]
[BlackElo "2299"]
[TimeControl "180+1"]
[EndTime "15:06:13 PDT"]
[Termination "Game drawn by stalemate"]

1. d4 {[%clk 0:02:59.8]} 1... Nf6 {[%clk 0:02:58.8]} 2. c4 {[%clk 0:02:57.3]}
2... e6 {[%clk 0:02:56.6]} 3. Nf3 {[%clk 0:02:56.1]} 3... d5 {[%clk 0:02:55.1]}
4. Nc3 {[%clk 0:02:46.9]} 4... c6 {[%clk 0:02:53.3]} 5. Bg5 {[%clk 0:02:45.7]}
5... h6 {[%clk 0:02:50.7]} 6. Bxf6 {[%clk 0:02:45.1]} 6... Qxf6 {[%clk
0:02:50.4]} 7. g3 {[%clk 0:02:45.8]} 7... Bb4 {[%clk 0:02:48.4]} 8. Bg2 {[%clk
0:02:45.4]} 8... O-O {[%clk 0:02:47.6]} 9. O-O {[%clk 0:02:45.6]} 9... Qd8
{[%clk 0:02:44.8]} 10. Qb3 {[%clk 0:02:34.9]} 10... a5 {[%clk 0:02:05.2]} 11. a3
{[%clk 0:02:32.9]} 11... Bxc3 {[%clk 0:01:57.1]} 12. Qxc3 {[%clk 0:02:33.8]}
12... Nd7 {[%clk 0:01:43.7]} 13. b4 {[%clk 0:02:28]} 13... Nb6 {[%clk
0:01:35.1]} 14. c5 {[%clk 0:02:13.5]} 14... Nc4 {[%clk 0:01:31.1]} 15. Nd2
{[%clk 0:02:11.9]} 15... b5 {[%clk 0:01:16.5]} 16. cxb6 {[%clk 0:02:05.8]} 16...
Nxd2 {[%clk 0:01:16.1]} 17. Qxd2 {[%clk 0:02:04.4]} 17... Qxb6 {[%clk
0:01:15.9]} 18. Rab1 {[%clk 0:01:57.6]} 18... axb4 {[%clk 0:01:08.1]} 19. axb4
{[%clk 0:01:51]} 19... Ba6 {[%clk 0:01:07.5]} 20. Rfc1 {[%clk 0:01:50.8]} 20...
Bc4 {[%clk 0:01:06.3]} 21. e4 {[%clk 0:01:48.5]} 21... Ra2 {[%clk 0:01:05.9]}
22. Rb2 {[%clk 0:01:46.2]} 22... Rfa8 {[%clk 0:01:05]} 23. exd5 {[%clk
0:01:26.4]} 23... cxd5 {[%clk 0:00:47.6]} 24. Bf1 {[%clk 0:01:23.7]} 24... Rxb2
{[%clk 0:00:44.5]} 25. Qxb2 {[%clk 0:01:24.6]} 25... Ra2 {[%clk 0:00:43.5]} 26.
Qc3 {[%clk 0:01:21]} 26... Bxf1 {[%clk 0:00:37.2]} 27. Rxf1 {[%clk 0:01:20]}
27... Qb5 {[%clk 0:00:28]} 28. Rc1 {[%clk 0:01:10.8]} 28... Qe2 {[%clk 0:00:23]}
29. Rf1 {[%clk 0:01:05.1]} 29... Rb2 {[%clk 0:00:20.9]} 30. Qc5 {[%clk
0:01:00.6]} 30... Qc4 {[%clk 0:00:18]} 31. Rc1 {[%clk 0:00:53.2]} 31... Qxb4
{[%clk 0:00:14.7]} 32. Qc8+ {[%clk 0:00:51.3]} 32... Kh7 {[%clk 0:00:14.7]} 33.
Qc7 {[%clk 0:00:41.6]} 33... Qb7 {[%clk 0:00:13.1]} 34. Qf4 {[%clk 0:00:40.8]}
34... f6 {[%clk 0:00:08.6]} 35. h4 {[%clk 0:00:40.1]} 35... Rb1 {[%clk
0:00:08.5]} 36. Kh2 {[%clk 0:00:38.6]} 36... Rxc1 {[%clk 0:00:08.5]} 37. Qxc1
{[%clk 0:00:39.5]} 37... Qb4 {[%clk 0:00:07.9]} 38. Qe3 {[%clk 0:00:39.2]} 38...
Qb6 {[%clk 0:00:06.3]} 39. h5 {[%clk 0:00:39.1]} 39... Qd6 {[%clk 0:00:06.2]}
40. Kg2 {[%clk 0:00:38.8]} 40... e5 {[%clk 0:00:05.9]} 41. Qd3+ {[%clk
0:00:35.7]} 41... e4 {[%clk 0:00:06]} 42. Qc3 {[%clk 0:00:35.3]} 42... Qe6
{[%clk 0:00:06]} 43. Qc5 {[%clk 0:00:35]} 43... Qf5 {[%clk 0:00:05.8]} 44. Qd6
{[%clk 0:00:32.1]} 44... Qxh5 {[%clk 0:00:05.7]} 45. Qf4 {[%clk 0:00:32.6]}
45... Qf3+ {[%clk 0:00:05.7]} 46. Qxf3 {[%clk 0:00:33.2]} 46... exf3+ {[%clk
0:00:06.6]} 47. Kxf3 {[%clk 0:00:34.1]} 47... Kg6 {[%clk 0:00:06.8]} 48. Kf4
{[%clk 0:00:34.6]} 48... Kf7 {[%clk 0:00:04.7]} 49. f3 {[%clk 0:00:31.3]} 49...
Ke6 {[%clk 0:00:04.6]} 50. g4 {[%clk 0:00:31.7]} 50... g6 {[%clk 0:00:04.6]} 51.
Ke3 {[%clk 0:00:30.4]} 51... h5 {[%clk 0:00:04]} 52. gxh5 {[%clk 0:00:28.9]}
52... gxh5 {[%clk 0:00:04.9]} 53. Kf4 {[%clk 0:00:29.7]} 53... Kf7 {[%clk
0:00:02.4]} 54. Kf5 {[%clk 0:00:29.6]} 54... Kg7 {[%clk 0:00:02.7]} 55. f4
{[%clk 0:00:19.6]} 55... Kf7 {[%clk 0:00:02.7]} 1/2-1/2

[Event "Late-Titled-Tuesday-Blitz-August-29-2023"]
[Site "Chess.com"]
[Date "2023.08.29"]
[Round "6"]
[White "zeitnot2006"]
[Black "Jumbo"]
[Result "1/2-1/2"]
[WhiteElo "2757"]
[BlackElo "2940"]
[TimeControl "180+1"]
[EndTime "15:06:14 PDT"]
[Termination "Game drawn by repetition"]

1. e4 {[%clk 0:03:00.9]} 1... c5 {[%clk 0:02:58.7]} 2. b3 {[%clk 0:03:00.7]}
2... Nc6 {[%clk 0:02:48.4]} 3. Bb2 {[%clk 0:03:00.8]} 3... a6 {[%clk 0:02:44.8]}
4. f4 {[%clk 0:03:00.2]} 4... d5 {[%clk 0:02:45]} 5. exd5 {[%clk 0:02:59.3]}
5... Qxd5 {[%clk 0:02:45.9]} 6. Nc3 {[%clk 0:02:59.7]} 6... Qd6 {[%clk
0:02:33.1]} 7. g3 {[%clk 0:02:56.7]} 7... Nf6 {[%clk 0:02:28.3]} 8. Bg2 {[%clk
0:02:57]} 8... Bg4 {[%clk 0:02:27.7]} 9. Bf3 {[%clk 0:02:49.7]} 9... h5 {[%clk
0:02:24.4]} 10. h3 {[%clk 0:02:40.4]} 10... Bf5 {[%clk 0:02:24.2]} 11. Nge2
{[%clk 0:02:36.7]} 11... Nd4 {[%clk 0:02:23.7]} 12. Nxd4 {[%clk 0:02:33]} 12...
cxd4 {[%clk 0:02:24.6]} 13. Ne2 {[%clk 0:02:27.8]} 13... d3 {[%clk 0:02:18.9]}
14. cxd3 {[%clk 0:02:02.2]} 14... Rd8 {[%clk 0:02:03.6]} 15. Nd4 {[%clk
0:01:51.5]} 15... Bxd3 {[%clk 0:01:47.1]} 16. Bxb7 {[%clk 0:01:49.1]} 16... h4
{[%clk 0:01:13.6]} 17. Qf3 {[%clk 0:01:45.4]} 17... e5 {[%clk 0:00:52.9]} 18.
Qxd3 {[%clk 0:01:29]} 18... exd4 {[%clk 0:00:52.6]} 19. Bxa6 {[%clk 0:01:17.5]}
19... Be7 {[%clk 0:00:41]} 20. Bb5+ {[%clk 0:01:15.7]} 20... Kf8 {[%clk
0:00:40.8]} 21. O-O-O {[%clk 0:01:14]} 21... hxg3 {[%clk 0:00:38.3]} 22. Qxg3
{[%clk 0:01:04.8]} 22... Ne4 {[%clk 0:00:20.1]} 23. Qf3 {[%clk 0:00:46.3]} 23...
Rc8+ {[%clk 0:00:19.9]} 24. Kb1 {[%clk 0:00:44.3]} 24... Nc5 {[%clk 0:00:19.1]}
25. Bc4 {[%clk 0:00:43]} 25... Rh4 {[%clk 0:00:17.9]} 26. Rdf1 {[%clk
0:00:36.8]} 26... Bf6 {[%clk 0:00:17.7]} 27. Qd5 {[%clk 0:00:30.4]} 27... Qxd5
{[%clk 0:00:17]} 28. Bxd5 {[%clk 0:00:31.3]} 28... Nd3 {[%clk 0:00:17.5]} 29.
Ba3+ {[%clk 0:00:32]} 29... Be7 {[%clk 0:00:13.7]} 30. Bxe7+ {[%clk 0:00:28.9]}
30... Kxe7 {[%clk 0:00:14.6]} 31. f5 {[%clk 0:00:25.7]} 31... Kf6 {[%clk
0:00:15]} 32. Bc4 {[%clk 0:00:21.7]} 32... Ne5 {[%clk 0:00:14.9]} 33. d3 {[%clk
0:00:21.8]} 33... Rch8 {[%clk 0:00:15.1]} 34. a4 {[%clk 0:00:20.7]} 34... Nc6
{[%clk 0:00:14.7]} 35. Rf3 {[%clk 0:00:18.9]} 35... Ne5 {[%clk 0:00:10.8]} 36.
Rg3 {[%clk 0:00:19.3]} 36... Rf4 {[%clk 0:00:10.7]} 37. Kb2 {[%clk 0:00:16.3]}
37... Rf2+ {[%clk 0:00:10.1]} 38. Ka3 {[%clk 0:00:16]} 38... Rb8 {[%clk
0:00:10.2]} 39. Rhg1 {[%clk 0:00:14.2]} 39... Rc2 {[%clk 0:00:10.6]} 40. Rxg7
{[%clk 0:00:10.4]} 40... Rc3 {[%clk 0:00:10.9]} 41. Ka2 {[%clk 0:00:03.6]} 41...
Nxc4 {[%clk 0:00:10.3]} 42. bxc4 {[%clk 0:00:04.4]} 42... Rbb3 {[%clk
0:00:10.1]} 43. R7g3 {[%clk 0:00:03.8]} 43... Ra3+ {[%clk 0:00:10.3]} 44. Kb2
{[%clk 0:00:04.6]} 44... Rab3+ {[%clk 0:00:10.4]} 45. Ka2 {[%clk 0:00:05.1]}
45... Rb4 {[%clk 0:00:07]} 46. Rb1 {[%clk 0:00:03.2]} 46... Rxa4+ {[%clk
0:00:07.5]} 47. Kb2 {[%clk 0:00:03.9]} 47... Rb4+ {[%clk 0:00:07.9]} 48. Ka2
{[%clk 0:00:04.5]} 48... Ra4+ {[%clk 0:00:07.5]} 49. Kb2 {[%clk 0:00:05.2]}
49... Raa3 {[%clk 0:00:06.8]} 50. h4 {[%clk 0:00:02.5]} 50... Rab3+ {[%clk
0:00:07.1]} 51. Ka2 {[%clk 0:00:03.3]} 51... Ra3+ {[%clk 0:00:07.2]} 52. Kb2
{[%clk 0:00:04]} 52... Rab3+ {[%clk 0:00:05.8]} 53. Ka2 {[%clk 0:00:04.6]} 53...
Ra3+ {[%clk 0:00:06]} 54. Kb2 {[%clk 0:00:05.3]} 1/2-1/2

[Event "Late-Titled-Tuesday-Blitz-August-29-2023"]
[Site "Chess.com"]
[Date "2023.08.29"]
[Round "6"]
[White "Lennis93"]
[Black "Fan_Of_Chucky"]
[Result "1-0"]
[WhiteElo "2697"]
[BlackElo "2513"]
[TimeControl "180+1"]
[EndTime "15:06:14 PDT"]
[Termination "Lennis93 won by resignation"]

1. Nf3 {[%clk 0:03:00.9]} 1... Nf6 {[%clk 0:02:58.6]} 2. c4 {[%clk 0:03:00.8]}
2... c5 {[%clk 0:02:58.9]} 3. g3 {[%clk 0:03:00.6]} 3... d5 {[%clk 0:02:58.8]}
4. cxd5 {[%clk 0:02:59.8]} 4... Nxd5 {[%clk 0:02:59.7]} 5. Bg2 {[%clk
0:03:00.1]} 5... Nc6 {[%clk 0:03:00.3]} 6. d4 {[%clk 0:02:59.5]} 6... cxd4
{[%clk 0:02:39.7]} 7. Nxd4 {[%clk 0:02:58.8]} 7... Nxd4 {[%clk 0:02:32.9]} 8.
Qxd4 {[%clk 0:02:58]} 8... Nb6 {[%clk 0:02:33.5]} 9. Qxd8+ {[%clk 0:02:45.5]}
9... Kxd8 {[%clk 0:02:34.4]} 10. Nc3 {[%clk 0:02:45.8]} 10... e6 {[%clk
0:02:29.1]} 11. Bg5+ {[%clk 0:02:45.5]} 11... f6 {[%clk 0:02:28.8]} 12. O-O-O+
{[%clk 0:02:45.7]} 12... Ke8 {[%clk 0:02:22.2]} 13. Be3 {[%clk 0:02:41.6]} 13...
Bd7 {[%clk 0:02:00.1]} 14. Bxb7 {[%clk 0:02:40.2]} 14... Rb8 {[%clk 0:02:00.7]}
15. Bf3 {[%clk 0:02:26.8]} 15... Nc4 {[%clk 0:01:40.5]} 16. Bxa7 {[%clk
0:02:26.2]} 16... Rxb2 {[%clk 0:01:41.1]} 17. Rd4 {[%clk 0:01:43.7]} 17... Ba3
{[%clk 0:01:39.6]} 18. Kd1 {[%clk 0:01:32.8]} 18... Ne5 {[%clk 0:01:24.3]} 19.
Be4 {[%clk 0:01:32.7]} 19... f5 {[%clk 0:01:06.9]} 20. Bc2 {[%clk 0:01:22.4]}
20... Rb7 {[%clk 0:01:04.5]} 21. e4 {[%clk 0:00:44.6]} 21... Rxa7 {[%clk
0:00:50.2]} 22. exf5 {[%clk 0:00:44.7]} 22... Bc5 {[%clk 0:00:50.8]} 23. Re4
{[%clk 0:00:44.1]} 23... Bd6 {[%clk 0:00:37.8]} 24. Rhe1 {[%clk 0:00:31.5]}
24... exf5 {[%clk 0:00:29.3]} 25. Rxe5+ {[%clk 0:00:31.2]} 25... Bxe5 {[%clk
0:00:30.2]} 26. Rxe5+ {[%clk 0:00:31.4]} 26... Kf7 {[%clk 0:00:19.8]} 27. f4
{[%clk 0:00:24.4]} 27... Rd8 {[%clk 0:00:17.4]} 28. Kc1 {[%clk 0:00:24]} 28...
Be6 {[%clk 0:00:14.6]} 29. Bxf5 {[%clk 0:00:22.7]} 29... Bxa2 {[%clk 0:00:13.7]}
30. Bxh7 {[%clk 0:00:19.3]} 30... Rc7 {[%clk 0:00:08.9]} 31. Kc2 {[%clk
0:00:17.1]} 31... Rdc8 {[%clk 0:00:06.6]} 32. Re3 {[%clk 0:00:17.2]} 32... g6
{[%clk 0:00:05.5]} 33. f5 {[%clk 0:00:17.6]} 33... gxf5 {[%clk 0:00:03.7]} 34.
Bxf5 {[%clk 0:00:18.5]} 34... Rb8 {[%clk 0:00:02.6]} 35. g4 {[%clk 0:00:18.8]}
35... Bb3+ {[%clk 0:00:03.1]} 36. Kd3 {[%clk 0:00:17.6]} 36... Rd8+ {[%clk
0:00:03.6]} 37. Ke2 {[%clk 0:00:17.6]} 37... Bc4+ {[%clk 0:00:03.5]} 38. Kf3
{[%clk 0:00:17.1]} 38... Bd5+ {[%clk 0:00:02.9]} 39. Nxd5 {[%clk 0:00:16.5]}
39... Rc5 {[%clk 0:00:02.7]} 40. Nf4 {[%clk 0:00:13.5]} 40... Rc1 {[%clk
0:00:02]} 41. h4 {[%clk 0:00:12.7]} 41... Rf1+ {[%clk 0:00:02.5]} 42. Kg3 {[%clk
0:00:12.1]} 42... Rdd1 {[%clk 0:00:01.9]} 43. Ng2 {[%clk 0:00:11.4]} 43... Rg1
{[%clk 0:00:01.7]} 44. Re2 {[%clk 0:00:11.5]} 44... Rgf1 {[%clk 0:00:01.9]} 45.
h5 {[%clk 0:00:11.8]} 45... Ra1 {[%clk 0:00:01.9]} 46. h6 {[%clk 0:00:12.2]}
46... Ra3+ {[%clk 0:00:02.7]} 47. Re3 {[%clk 0:00:11.8]} 47... Rxe3+ {[%clk
0:00:02.2]} 48. Nxe3 {[%clk 0:00:12.7]} 48... Rh1 {[%clk 0:00:03]} 49. h7 {[%clk
0:00:13]} 49... Kg7 {[%clk 0:00:03.4]} 50. Kf4 {[%clk 0:00:11.8]} 50... Rf1+
{[%clk 0:00:03.1]} 51. Nxf1 {[%clk 0:00:11.4]} 1-0

[Event "Late-Titled-Tuesday-Blitz-August-29-2023"]
[Site "Chess.com"]
[Date "2023.08.29"]
[Round "6"]
[White "Fonsofan"]
[Black "Oleksandr_Bortnyk"]
[Result "1-0"]
[WhiteElo "2691"]
[BlackElo "3020"]
[TimeControl "180+1"]
[EndTime "15:06:18 PDT"]
[Termination "Fonsofan won on time"]

1. d4 {[%clk 0:02:53.3]} 1... d6 {[%clk 0:02:58.1]} 2. Nf3 {[%clk 0:02:54.2]}
2... Nf6 {[%clk 0:02:57.6]} 3. Nc3 {[%clk 0:02:51.1]} 3... Nbd7 {[%clk
0:02:43.5]} 4. e4 {[%clk 0:02:48.1]} 4... e5 {[%clk 0:02:43.5]} 5. Bc4 {[%clk
0:02:47.9]} 5... Be7 {[%clk 0:02:43]} 6. O-O {[%clk 0:02:45.8]} 6... O-O {[%clk
0:02:42.7]} 7. Re1 {[%clk 0:02:40.7]} 7... a6 {[%clk 0:02:40.6]} 8. a4 {[%clk
0:02:40.6]} 8... b6 {[%clk 0:02:40.6]} 9. b3 {[%clk 0:02:32.4]} 9... Bb7 {[%clk
0:02:39.6]} 10. Bb2 {[%clk 0:02:33]} 10... c6 {[%clk 0:02:33.6]} 11. d5 {[%clk
0:02:27.6]} 11... Qc7 {[%clk 0:02:05.7]} 12. Re2 {[%clk 0:02:25.5]} 12... Nc5
{[%clk 0:01:38.3]} 13. Ba3 {[%clk 0:02:11.6]} 13... b5 {[%clk 0:01:00.9]} 14.
dxc6 {[%clk 0:02:06.1]} 14... Bxc6 {[%clk 0:00:54.9]} 15. Nd5 {[%clk 0:01:54.5]}
15... Qb7 {[%clk 0:00:45.4]} 16. Bxc5 {[%clk 0:01:25.5]} 16... dxc5 {[%clk
0:00:35.5]} 17. Nxe5 {[%clk 0:01:25.8]} 17... Rae8 {[%clk 0:00:19.2]} 18. axb5
{[%clk 0:01:13.8]} 18... axb5 {[%clk 0:00:19.4]} 19. Ra7 {[%clk 0:00:53.8]}
19... Qxa7 {[%clk 0:00:11]} 20. Nxc6 {[%clk 0:00:53.2]} 20... Qb7 {[%clk
0:00:07.7]} 21. Ncxe7+ {[%clk 0:00:40.3]} 21... Kh8 {[%clk 0:00:07.7]} 22. Bxb5
{[%clk 0:00:25]} 22... Qxb5 {[%clk 0:00:05.1]} 23. Nc7 {[%clk 0:00:24.5]} 23...
Rd8 {[%clk 0:00:05.4]} 24. Qe1 {[%clk 0:00:19]} 24... Qb4 {[%clk 0:00:03.9]} 25.
Ncd5 {[%clk 0:00:17]} 25... Qxe1+ {[%clk 0:00:02.3]} 26. Rxe1 {[%clk 0:00:17.9]}
26... Nxd5 {[%clk 0:00:02]} 27. Nxd5 {[%clk 0:00:18.8]} 27... Rfe8 {[%clk
0:00:02.3]} 28. c4 {[%clk 0:00:18]} 28... Rb8 {[%clk 0:00:02.8]} 29. Re3 {[%clk
0:00:17.7]} 29... f5 {[%clk 0:00:03.4]} 30. f3 {[%clk 0:00:17.9]} 30... fxe4
{[%clk 0:00:04]} 31. fxe4 {[%clk 0:00:18.6]} 31... Ra8 {[%clk 0:00:03.8]} 32.
Kf2 {[%clk 0:00:18.5]} 32... Ra2+ {[%clk 0:00:03.9]} 33. Kg3 {[%clk 0:00:18.1]}
33... g5 {[%clk 0:00:03.5]} 34. e5 {[%clk 0:00:18.1]} 34... Kg7 {[%clk
0:00:03.8]} 35. e6 {[%clk 0:00:18.5]} 35... h5 {[%clk 0:00:02.4]} 36. e7 {[%clk
0:00:18.6]} 36... Ra7 {[%clk 0:00:02.1]} 37. Re5 {[%clk 0:00:18.5]} 37... Kg6
{[%clk 0:00:02.5]} 38. h4 {[%clk 0:00:19]} 38... gxh4+ {[%clk 0:00:01.8]} 39.
Kxh4 {[%clk 0:00:19.9]} 39... Rb7 {[%clk 0:00:02.4]} 40. Rg5+ {[%clk 0:00:19.8]}
40... Kf7 {[%clk 0:00:02.3]} 41. Rf5+ {[%clk 0:00:19.1]} 41... Ke6 {[%clk
0:00:01.5]} 42. Rf3 {[%clk 0:00:19.4]} 42... Ke5 {[%clk 0:00:01.3]} 43. g3
{[%clk 0:00:19.3]} 43... Ke4 {[%clk 0:00:01.5]} 44. Re3+ {[%clk 0:00:19.4]}
44... Kf5 {[%clk 0:00:01.9]} 45. Rf3+ {[%clk 0:00:17.5]} 45... Ke4 {[%clk
0:00:02.8]} 46. Rf4+ {[%clk 0:00:15.3]} 46... Ke5 {[%clk 0:00:03.3]} 47. Kxh5
{[%clk 0:00:14.8]} 47... Rxb3 {[%clk 0:00:03.4]} 48. Kg4 {[%clk 0:00:11.6]}
48... Rg8+ {[%clk 0:00:03.2]} 49. Kh4 {[%clk 0:00:11.6]} 49... Kd6 {[%clk
0:00:02]} 50. Rf8 {[%clk 0:00:10.8]} 50... Rgxg3 {[%clk 0:00:02]} 51. e8=Q
{[%clk 0:00:10.3]} 51... Rh3+ {[%clk 0:00:02.5]} 52. Kg5 {[%clk 0:00:10.7]}
52... Rbg3+ {[%clk 0:00:02.9]} 53. Kf5 {[%clk 0:00:10]} 53... Rf3+ {[%clk
0:00:02.8]} 54. Nf4 {[%clk 0:00:10.3]} 54... Rxf4+ {[%clk 0:00:01.4]} 55. Kxf4
{[%clk 0:00:10.1]} 55... Rh7 {[%clk 0:00:01.9]} 56. Qe5+ {[%clk 0:00:09.7]}
56... Kd7 {[%clk 0:00:01.8]} 57. Qf5+ {[%clk 0:00:08.6]} 57... Ke7 {[%clk
0:00:01.9]} 58. Qxh7+ {[%clk 0:00:09]} 58... Ke6 {[%clk 0:00:01.9]} 59. Qg6+
{[%clk 0:00:08.5]} 1-0

[Event "Late-Titled-Tuesday-Blitz-August-29-2023"]
[Site "Chess.com"]
[Date "2023.08.29"]
[Round "6"]
[White "azikom"]
[Black "DishonorOnYourCow"]
[Result "0-1"]
[WhiteElo "2687"]
[BlackElo "2546"]
[TimeControl "180+1"]
[EndTime "15:06:21 PDT"]
[Termination "DishonorOnYourCow won on time"]

1. c4 {[%clk 0:03:00.7]} 1... e5 {[%clk 0:02:59.9]} 2. Nc3 {[%clk 0:03:00]} 2...
Nc6 {[%clk 0:03:00.2]} 3. e3 {[%clk 0:02:59]} 3... Bc5 {[%clk 0:02:56.3]} 4. Nf3
{[%clk 0:02:57.2]} 4... d6 {[%clk 0:02:55.1]} 5. a3 {[%clk 0:02:57.5]} 5... a6
{[%clk 0:02:55]} 6. b4 {[%clk 0:02:57.7]} 6... Ba7 {[%clk 0:02:54.6]} 7. Bb2
{[%clk 0:02:56.9]} 7... Nf6 {[%clk 0:02:51.8]} 8. Be2 {[%clk 0:02:56.1]} 8...
O-O {[%clk 0:02:50.1]} 9. O-O {[%clk 0:02:54.5]} 9... Ne7 {[%clk 0:02:48.2]} 10.
d4 {[%clk 0:02:53.4]} 10... exd4 {[%clk 0:02:48.4]} 11. exd4 {[%clk 0:02:53.4]}
11... d5 {[%clk 0:02:49]} 12. c5 {[%clk 0:02:53.3]} 12... c6 {[%clk 0:02:49.3]}
13. Re1 {[%clk 0:02:47.7]} 13... Bb8 {[%clk 0:02:48.4]} 14. a4 {[%clk
0:02:44.2]} 14... Bg4 {[%clk 0:02:44.8]} 15. h3 {[%clk 0:02:42.7]} 15... Bh5
{[%clk 0:02:43.9]} 16. b5 {[%clk 0:02:41.7]} 16... axb5 {[%clk 0:02:40.1]} 17.
axb5 {[%clk 0:02:42.6]} 17... Rxa1 {[%clk 0:02:40.2]} 18. Bxa1 {[%clk 0:02:43]}
18... Ne4 {[%clk 0:02:12.8]} 19. Nxe4 {[%clk 0:02:42.3]} 19... dxe4 {[%clk
0:02:12.9]} 20. Ng5 {[%clk 0:02:41]} 20... Bxe2 {[%clk 0:01:54.7]} 21. Qxe2
{[%clk 0:02:41.9]} 21... Nf5 {[%clk 0:01:43.6]} 22. Qh5 {[%clk 0:02:29.5]} 22...
h6 {[%clk 0:01:41.7]} 23. Nxe4 {[%clk 0:02:27.4]} 23... Nxd4 {[%clk 0:01:15.3]}
24. bxc6 {[%clk 0:01:06.9]} 24... Nxc6 {[%clk 0:01:04.2]} 25. Rd1 {[%clk
0:00:52.2]} 25... Qc7 {[%clk 0:01:02.5]} 26. Nd6 {[%clk 0:00:50.6]} 26... Ne7
{[%clk 0:00:37.9]} 27. Qe5 {[%clk 0:00:46.6]} 27... f6 {[%clk 0:00:28.9]} 28.
Qe6+ {[%clk 0:00:46.4]} 28... Kh7 {[%clk 0:00:27.9]} 29. Qe4+ {[%clk 0:00:45.8]}
29... Kh8 {[%clk 0:00:24.9]} 30. Qxb7 {[%clk 0:00:44.8]} 30... Qxb7 {[%clk
0:00:15.5]} 31. Nxb7 {[%clk 0:00:45.7]} 31... Bf4 {[%clk 0:00:11]} 32. g3 {[%clk
0:00:44.7]} 32... Be5 {[%clk 0:00:06]} 33. Bxe5 {[%clk 0:00:43.4]} 33... fxe5
{[%clk 0:00:06.9]} 34. Rd7 {[%clk 0:00:43]} 34... Nc6 {[%clk 0:00:05.6]} 35. Nd6
{[%clk 0:00:42.2]} 35... e4 {[%clk 0:00:04.2]} 36. Nxe4 {[%clk 0:00:41.5]} 36...
Ne5 {[%clk 0:00:04.2]} 37. Rd5 {[%clk 0:00:40.8]} 37... Nf3+ {[%clk 0:00:03.1]}
38. Kg2 {[%clk 0:00:39.3]} 38... Ne1+ {[%clk 0:00:03.3]} 39. Kf1 {[%clk
0:00:38.2]} 39... Nf3 {[%clk 0:00:03.6]} 40. c6 {[%clk 0:00:25.3]} 40... Rc8
{[%clk 0:00:02.8]} 41. Rd6 {[%clk 0:00:08.5]} 41... Ne5 {[%clk 0:00:02.9]} 42.
Re6 {[%clk 0:00:07.3]} 42... Nxc6 {[%clk 0:00:02.9]} 43. Nd6 {[%clk 0:00:07.3]}
43... Rc7 {[%clk 0:00:03.3]} 44. Ne8 {[%clk 0:00:05.9]} 44... Re7 {[%clk
0:00:03.6]} 45. Nxg7 {[%clk 0:00:02.7]} 45... Rxg7 {[%clk 0:00:02.8]} 46. Rxc6
{[%clk 0:00:01.9]} 46... Kh7 {[%clk 0:00:02.8]} 47. Kg2 {[%clk 0:00:02]} 47...
Ra7 {[%clk 0:00:03.4]} 48. h4 {[%clk 0:00:02.4]} 48... Kg7 {[%clk 0:00:03.9]}
49. Rc5 {[%clk 0:00:01.8]} 49... Rf7 {[%clk 0:00:04.5]} 50. Rc4 {[%clk
0:00:01.4]} 50... Ra7 {[%clk 0:00:05.1]} 51. Rg4+ {[%clk 0:00:00.1]} 51... Kh7
{[%clk 0:00:04.9]} 0-1

[Event "Late-Titled-Tuesday-Blitz-August-29-2023"]
[Site "Chess.com"]
[Date "2023.08.29"]
[Round "6"]
[White "Ducke13"]
[Black "psychokiller48"]
[Result "0-1"]
[WhiteElo "2426"]
[BlackElo "2673"]
[TimeControl "180+1"]
[EndTime "15:06:25 PDT"]
[Termination "psychokiller48 won by checkmate"]

1. d4 {[%clk 0:02:56.4]} 1... Nf6 {[%clk 0:02:59.9]} 2. g3 {[%clk 0:02:56.9]}
2... e6 {[%clk 0:02:56.3]} 3. c4 {[%clk 0:02:56.3]} 3... c5 {[%clk 0:02:55.2]}
4. d5 {[%clk 0:02:56.2]} 4... exd5 {[%clk 0:02:55.2]} 5. cxd5 {[%clk 0:02:57.1]}
5... d6 {[%clk 0:02:56.1]} 6. Nc3 {[%clk 0:02:57.7]} 6... g6 {[%clk 0:02:56.5]}
7. Nf3 {[%clk 0:02:58.4]} 7... Bg7 {[%clk 0:02:57]} 8. Bg2 {[%clk 0:02:59.3]}
8... O-O {[%clk 0:02:57.7]} 9. O-O {[%clk 0:03:00]} 9... a6 {[%clk 0:02:58.5]}
10. a4 {[%clk 0:02:59.7]} 10... Re8 {[%clk 0:02:59.1]} 11. Re1 {[%clk
0:02:59.8]} 11... Nbd7 {[%clk 0:02:47.7]} 12. h3 {[%clk 0:02:57.2]} 12... Rb8
{[%clk 0:02:47]} 13. Bf4 {[%clk 0:02:52.2]} 13... Qc7 {[%clk 0:02:41.2]} 14. e4
{[%clk 0:02:49.2]} 14... Nh5 {[%clk 0:02:27]} 15. Bg5 {[%clk 0:02:44.1]} 15...
h6 {[%clk 0:02:23.2]} 16. Bd2 {[%clk 0:02:42.9]} 16... b5 {[%clk 0:02:22.8]} 17.
axb5 {[%clk 0:02:41]} 17... axb5 {[%clk 0:02:23.7]} 18. Bf1 {[%clk 0:02:38.9]}
18... b4 {[%clk 0:02:11.7]} 19. Nb5 {[%clk 0:02:38.3]} 19... Qb6 {[%clk
0:02:09]} 20. g4 {[%clk 0:02:30]} 20... Nhf6 {[%clk 0:02:05.1]} 21. Bf4 {[%clk
0:02:30]} 21... Ne5 {[%clk 0:02:01]} 22. Nxe5 {[%clk 0:02:24.8]} 22... dxe5
{[%clk 0:02:01.1]} 23. Be3 {[%clk 0:02:21.9]} 23... Bd7 {[%clk 0:01:59.9]} 24.
Na7 {[%clk 0:01:57.3]} 24... Ra8 {[%clk 0:01:57.5]} 25. Ra6 {[%clk 0:01:56]}
25... Qb7 {[%clk 0:01:23.8]} 26. Bxc5 {[%clk 0:01:52.6]} 26... Bf8 {[%clk
0:01:18.4]} 27. Bxf8 {[%clk 0:01:47.3]} 27... Rxf8 {[%clk 0:01:16]} 28. Rxf6
{[%clk 0:01:34.5]} 28... Rxa7 {[%clk 0:01:14.8]} 29. Qd2 {[%clk 0:01:27.7]}
29... Kg7 {[%clk 0:01:10.4]} 30. g5 {[%clk 0:01:25.2]} 30... hxg5 {[%clk
0:00:59.7]} 31. Qxg5 {[%clk 0:01:23.9]} 31... Qc7 {[%clk 0:00:58.8]} 32. Rf3
{[%clk 0:00:51.1]} 32... Qd6 {[%clk 0:00:54.4]} 33. Rc1 {[%clk 0:00:38.3]} 33...
Ra2 {[%clk 0:00:36.4]} 34. b3 {[%clk 0:00:35]} 34... Rh8 {[%clk 0:00:25.4]} 35.
Rg3 {[%clk 0:00:30]} 35... Rh6 {[%clk 0:00:20.5]} 36. Qe3 {[%clk 0:00:10.3]}
36... Rh4 {[%clk 0:00:18.7]} 37. Rf3 {[%clk 0:00:08]} 37... Rb2 {[%clk
0:00:14.2]} 38. Qg5 {[%clk 0:00:06.1]} 38... Rh5 {[%clk 0:00:12.1]} 39. Qe3
{[%clk 0:00:05.5]} 39... Rh4 {[%clk 0:00:11.5]} 40. Rg3 {[%clk 0:00:05.2]} 40...
Rf4 {[%clk 0:00:11.1]} 41. Rf3 {[%clk 0:00:04.4]} 41... Qf6 {[%clk 0:00:07]} 42.
Rxf4 {[%clk 0:00:04.5]} 42... exf4 {[%clk 0:00:07.9]} 43. Qf3 {[%clk 0:00:04.4]}
43... Qe5 {[%clk 0:00:07.4]} 44. Rd1 {[%clk 0:00:03.3]} 44... g5 {[%clk
0:00:06.2]} 45. Bc4 {[%clk 0:00:03]} 45... Rc2 {[%clk 0:00:05.3]} 46. d6 {[%clk
0:00:03.2]} 46... Rc3 {[%clk 0:00:05.8]} 47. Qe2 {[%clk 0:00:02.4]} 47... f3
{[%clk 0:00:05.7]} 48. Qf1 {[%clk 0:00:02.4]} 48... Rc2 {[%clk 0:00:03.6]} 49.
Rd5 {[%clk 0:00:02.6]} 49... Qb2 {[%clk 0:00:03.7]} 50. Rxg5+ {[%clk 0:00:02.6]}
50... Kf6 {[%clk 0:00:04.4]} 51. Rf5+ {[%clk 0:00:02.5]} 51... Bxf5 {[%clk
0:00:03.8]} 52. exf5 {[%clk 0:00:02]} 52... Rc1 {[%clk 0:00:04.7]} 53. d7 {[%clk
0:00:02]} 53... Rxf1+ {[%clk 0:00:04.9]} 54. Bxf1 {[%clk 0:00:02.3]} 54... Qd4
{[%clk 0:00:05.8]} 55. Bb5 {[%clk 0:00:02.3]} 55... Kxf5 {[%clk 0:00:06]} 56.
Kh2 {[%clk 0:00:02.3]} 56... Kf4 {[%clk 0:00:06.2]} 57. h4 {[%clk 0:00:02.4]}
57... Qxf2+ {[%clk 0:00:06.8]} 58. Kh3 {[%clk 0:00:02.2]} 58... Qg2# {[%clk
0:00:07.7]} 0-1